Cogmind - Beta 13 @@@ ROGUE MODE // 2024.04.16 @ 23:24:01 Player: DeathByZer0 Result: Destroyed by G-34 Mercenary with Small Laser Performance ------------- Evolutions (1) 500 Regions Visited (2) 400 Robots Destroyed (55) 275 Value Destroyed (1257) 1257 Prototype IDs (6) 120 Alien Tech Used (0) 0 Bonus (87) 87 TOTAL SCORE: 2639 Bonus ------- High Alert Combat Kills 87 Cogmind --------- Core Integrity 0/400 Matter 275/300 Energy 221/250 System Corruption 0% Temperature Warning (312) Movement Flying (117) Ox1 Location -9/Materials Parts ------- > --- POWER (1) -------- Ion Engine > --- PROPULSION (3) --- Flight Unit Flight Unit > --- UTILITY (3) ------ Sensor Array Signal Interpreter Light Armor Plating > --- WEAPON (2) ------- Small Laser Small Laser > --- INVENTORY (5) ---- Ion Engine Flight Unit Small Storage Unit Weight Redist. System Signal Interpreter Peak State ------------ > --- POWER ------------ Ion Engine > --- PROPULSION ------- Flight Unit Flight Unit VTOL Module > --- UTILITY ---------- Weight Redist. System Sensor Array Signal Interpreter > --- WEAPON ----------- Improved Medium Laser Advanced Beam Cannon > --- INVENTORY -------- Light Ion Engine Flight Unit Heat Sink Heat Sink Grenade Launcher [Rating: 15] Favorites ----------- Power Light Ion Engine Engine Light Ion Engine Propulsion Flight Unit Treads Light Treads Wheel Compact Wheel Flight Unit Flight Unit Utility Seismic Detector Device Seismic Detector Storage Small Storage Unit Processor Signal Interpreter Protection Light Armor Plating Weapon Small Laser Energy Gun Small Laser Energy Cannon Advanced Beam Cannon Ballistic Gun Assault Rifle Launcher Grenade Launcher Build | -11 -10 -9 ------- Run | Yrd Mat Mat Slots Evolved 2 | . . 2 Power . | . . . Propulsion 1 | . . 1 Utility 1 | . . 1 Weapon . | . . . Parts Attached 77 | 11 12 54 Power 12 | 2 1 9 Engine 12 | 2 1 9 Core . | . . . Reactor . | . . . Propulsion 16 | 4 3 9 Treads 3 | 2 . 1 Leg . | . . . Wheel 2 | 2 . . Hover . | . . . Flight 11 | . 3 8 Utility 25 | 2 3 20 Device 14 | 1 1 12 Storage 4 | 1 2 1 Processor 2 | . . 2 Hackware . | . . . Protection 5 | . . 5 Artifact . | . . . Weapon 24 | 3 5 16 Energy Gun 15 | 1 3 11 Energy Cannon 1 | . . 1 Ballistic Gun 5 | 2 1 2 Ballistic Cannon . | . . . Launcher 3 | . 1 2 Special Weapon . | . . . Impact Weapon . | . . . Slashing Weapon . | . . . Piercing Weapon . | . . . Special Melee Weapon . | . . . Unidentified Prototypes 2 | . . 2 Parts Lost 11 | . . 11 Power 2 | . . 2 Propulsion 5 | . . 5 Utility 2 | . . 2 Weapon 2 | . . 2 Highest Loss Streak 7 | . . 7 To Critical Strikes . | . . . Average Slot Usage (%) 96 | . 99 95 Engine 11 | . 14 10 Wheel 2 | . 8 . Flight 27 | . 19 31 Device 21 | . 22 20 Storage 1 | . 4 . Processor 6 | . . 9 Energy Gun 19 | . 18 19 Ballistic Gun 4 | . 8 1 Naked Turns . | . . . Heaviest Build 30 | 15 30 15 Greatest Support 40 | 40 32 26 Greatest Overweight (x) 2 | 2 1 1 Average Overweight (x) . | . . . Largest Inventory Capacity 15 | 8 15 8 Average Capacity 6 | 7 8 5 Most Carried 9 | 6 9 5 Average Carried 4 | 3 5 4 Final Capacity 8 | 8 5 5 Final Carried 5 | 4 5 5 Class Distribution -------------------- 64% | Scavenger-Mutant 22% | Mutant 12% | Scavenger-Sprinter Dominant Class ---------------- Scavenger-Mutant | -10/Materials Scavenger-Mutant | -9/Materials Resources | -11 -10 -9 ----------- Run | Yrd Mat Mat Matter Collected 1242 | 385 236 621 Remotely . | . . . Salvage Created 1677 | 201 369 1107 Parts 124 | 14 31 79 Haulers Intercepted 3 | . 1 2 Recyclers Shooed . | . . . Parts Field Recycled . | . . . Retrieved Matter . | . . . Parts Self-Destructed . | . . . Prevented . | . . . Kills | -11 -10 -9 ------- Run | Yrd Mat Mat Combat Hostiles Destroyed 37 | . 12 25 Guns 28 | . 6 22 AOE 9 | . 6 3 Classes Destroyed 10 | 3 5 2 Worker 4 | 2 1 1 Builder 1 | . 1 . Tunneler 3 | 3 . . Hauler 3 | . 1 2 Recycler 1 | 1 . . Watcher 6 | . 3 3 Swarmer 11 | . 5 6 Grunt 21 | . 7 14 Brawler 1 | . . 1 Sentry 4 | . . 4 Best Kill Streak 8 | 2 8 6 Combat Bots Only 6 | . 6 6 Max Kills in Single Turn 3 | 1 3 2 Gunslinging 1 | . . 1 Exploded 2 | . 2 2 Melee . | . . . Uniques/NPCs Destroyed . | . . . Combat | -11 -10 -9 -------- Run | Yrd Mat Mat Hostile Shots Fired 201 | . 48 153 Missed 74 | . 17 57 Damage Taken 1510 | . 357 1153 Core 451 | . 51 400 Absorbed by Shields . | . . . Core Remaining (%) 89 | 100 79 . Volleys Fired 152 | 23 40 89 Largest 2 | 2 2 2 Hottest 112 | 60 90 112 Shots Fired 293 | 46 79 168 Gun 288 | 46 76 166 Cannon . | . . . Launcher 5 | . 3 2 Special . | . . . Kinetic 83 | 25 32 26 Thermal 184 | . 44 140 Explosive 5 | . 3 2 Electromagnetic 21 | 21 . . Robot Hit Streak 15 | 9 10 15 Robot Miss Streak 7 | 7 6 6 Penetration Max . | . . . Secondary Targets 6 | . . 6 Max Gunslinging Chain 1 | . . 1 Shots Hit Robots 167 | 21 38 108 Core Hits 89 | 7 27 55 Critical Kills . | . . . Critical Parts Destroyed 1 | . 1 . Critical Strikes 11 | 1 1 9 Burn 9 | . . 9 Destroy 1 | . 1 . Corrupt 1 | 1 . . Melee Attacks . | . . . Impact . | . . . Slashing . | . . . Piercing . | . . . Sneak Attacks . | . . . Combat Hostiles . | . . . Follow-up Attacks . | . . . Damage Inflicted 3190 | 278 1129 1783 Guns 2337 | 278 514 1545 Cannons . | . . . Explosions 853 | . 615 238 Melee . | . . . Ramming . | . . . Kinetic 762 | 154 247 361 Thermal 1644 | . 460 1184 Explosive 660 | . 422 238 Electromagnetic 124 | 124 . . Impact . | . . . Slashing . | . . . Piercing . | . . . Highest Corruption . | . . . Average Corruption . | . . . Corruption Purged . | . . . Corruption Blocked . | . . . Overload Shots . | . . . Overflow Damage 44 | . 44 . Projectiles . | . . . Explosions 44 | . 44 . Melee . | . . . Knockbacks . | . . . Impact . | . . . Kinetic . | . . . Secondary . | . . . Self-Inflicted Damage 72 | . 42 30 Shots 2 | . 1 1 Rammed . | . . . Targets Rammed . | . . . Kicked . | . . . Crushed . | . . . Highest Temperature 382 | . 56 382 Average Temperature 131 | . 17 148 Received Heat Transfer 528 | . 96 432 Effects 7 | . . 7 Energy Bleed 4 | . . 4 Interference 2 | . . 2 Matter Decay 1 | . . 1 Siege Activations . | . . . Robots Corrupted . | . . . Combat Hostiles . | . . . Parts Fried . | . . . Impact Corruptions . | . . . Robots Melted . | . . . Combat Hostiles . | . . . Parts Melted 4 | . 1 3 Heat Transferred 4300 | . 712 3588 Parts Sabotaged . | . . . Parts Stolen . | . . . Parts Stripped . | . . . Power Chain Reactions . | . . . Alert | -11 -10 -9 ------- Run | Yrd Mat Mat Peak Influence 685 | 30 392 685 Initial 129 | . 19 129 Average 263 | 13 255 339 Maximum Alert Level 2 | . 1 2 Low Security (%) 35 | 100 34 17 Level 1 42 | . 65 42 Level 2 21 | . . 39 Level 3 . | . . . Level 4 . | . . . Level 5 . | . . . High Security . | . . . Max Security . | . . . Squads Dispatched 8 | . 3 5 Investigation 5 | . 1 4 Extermination . | . . . Reinforcement 3 | . 2 1 Assault . | . . . Garrison . | . . . Intercept . | . . . Searches Triggered . | . . . Construction Impeded . | . . . Haulers Reinforced . | . . . Active Scanning Responses . | . . . Cargo Convoy Interrupts . | . . . Stealth | -11 -10 -9 --------- Run | Yrd Mat Mat Distress Signals 5 | . 3 2 Communications Jammed . | . . . Distress Signals . | . . . Times Spotted 51 | . 19 32 Peak Tracking Total 7 | . 7 5 Tactical Retreats 1 | . . 1 Traps | -11 -10 -9 ------- Run | Yrd Mat Mat Traps Triggered . | . . . Indirectly . | . . . Trap Hack Attempts . | . . . Triggered . | . . . Disarmed 4 | . . 4 Reprogrammed . | . . . Reused . | . . . Traps Extracted . | . . . Installed . | . . . Triggered . | . . . Machines | -11 -10 -9 ---------- Run | Yrd Mat Mat Machines Disabled 4 | . 2 2 Max in Single Turn 2 | . 2 2 Machines Repaired . | . . . Machines Dismantled . | . . . Machines Sabotaged . | . . . Overloaded Fab Kills . | . . . Hacking | -11 -10 -9 --------- Run | Yrd Mat Mat Machines Accessed 18 | . 5 13 Terminals 14 | . 4 10 Fabricators . | . . . Repair Stations . | . . . Recycling Units 2 | . 1 1 Scanalyzers 2 | . . 2 Garrison Access . | . . . Total Hacks 61 | . 14 47 Successful 33 | . 7 26 Failed 28 | . 7 21 Catastrophic 5 | . 4 1 Database Lockouts . | . . . Manual . | . . . Terminals 43 | . 11 32 Fabricators . | . . . Repair Stations . | . . . Recycling Units 4 | . 3 1 Scanalyzers 14 | . . 14 Garrison Access . | . . . Terminal Hacks 18 | . 5 13 Record 2 | . . 2 Prototype ID Bank 2 | . 2 . Emergency Access Points 1 | . . 1 Terminal Index 1 | . . 1 Alert Level 3 | . 1 2 Locate Traps 3 | . 1 2 Disarm Traps 1 | . . 1 Maintenance Status 1 | . . 1 Surveillance Status 1 | . . 1 Transport Status 1 | . . 1 Hauler Manifests 1 | . . 1 Zone Layout 1 | . 1 . Fabricator Hacks . | . . . Repair Station Hacks . | . . . Recycling Unit Hacks 3 | . 2 1 Report Inventory 2 | . 1 1 Retrieve Components 1 | . 1 . Scanalyzer 12 | . . 12 Insert Component 6 | . . 6 Analyze 6 | . . 6 Garrison Access Hacks . | . . . Unauthorized Hacks . | . . . Terminals . | . . . Fabricators . | . . . Repair Stations . | . . . Recycling Units . | . . . Scanalyzers . | . . . Garrison Access . | . . . Data Cores Recovered . | . . . Used . | . . . Hacking Detections 14 | . 4 10 Full Trace Events 10 | . 1 9 Feedback Events . | . . . Feedback Blocked . | . . . Robot Schematics Acquired . | . . . Robots Built . | . . . Authchips . | . . . Time . | . . . Total Robot Build Rating . | . . . Part Schematics Acquired 5 | . . 5 Parts Built . | . . . Authchips . | . . . Time . | . . . Total Part Build Rating . | . . . Parts Repaired . | . . . Time . | . . . Parts Recycled . | . . . Recycled Matter . | . . . Retrieved Matter . | . . . Retrieved Components 9 | . 9 . Parts Scanalyzed 5 | . . 5 Part Schematics Acquired 5 | . . 5 Parts Damaged . | . . . Bothacking | -11 -10 -9 ------------ Run | Yrd Mat Mat Used RIF Installer . | . . . Robots Hacked . | . . . Non-combat . | . . . Combat . | . . . Robot Hacks Applied . | . . . Relay Couplers Released . | . . . Fabnet Peak Effective % . | . . . Robots Rewired . | . . . Allies Hacked . | . . . Hacks Repelled . | . . . Allies | -11 -10 -9 -------- Run | Yrd Mat Mat Total Allies . | . . . Largest Group . | . . . Highest-Rated Group . | . . . Highest-Rated Ally . | . . . Total Orders . | . . . Ally Attacks . | . . . Total Damage . | . . . Kills . | . . . Allies Corrupted . | . . . Allies Melted . | . . . Intel | -11 -10 -9 ------- Run | Yrd Mat Mat Robot Analysis Total . | . . . Derelict Logs Recovered . | . . . Drone Launches . | . . . Drone Recoveries . | . . . Exploration | -11 -10 -9 ------------- Run | Yrd Mat Mat Turns Passed 1585 | 246 475 864 Spaces Moved 1516 | 148 477 891 Core 16 | 16 . . Treads 11 | 9 . 2 Legs . | . . . Wheels 197 | 123 74 . Hover . | . . . Flight 1292 | . 403 889 Fastest Speed 32 | 50 37 32 Average Speed 46 | 100 47 37 Slowest Speed 160 | 160 117 160 Overloaded Moves . | . . . Propulsion Burnouts . | . . . Robots Hopped 9 | . 1 8 Cave-ins Triggered . | . . . Exploration Rate (%) 48 | 6 73 67 Regions Visited 2 Branch Regions . Pre-discovered Areas . | . . . Known Exits Taken . | . . . Unknown Exits Taken 2 | 1 1 . Scrap Searched . | . . . Spaces Dug . | . . . Terrain Destroyed 58 | . 48 10 Melee . | . . . Projectile . | . . . AOE 58 | . 48 10 Terrain Rammed . | . . . Walls Destroyed . | . . . Machines Disabled . | . . . Actions | -11 -10 -9 --------- Run | Yrd Mat Mat Total 2091 | 198 644 1249 Wait 262 | . 91 171 Move 1496 | 147 474 875 Hop 9 | . 1 8 Pick Up 46 | 14 13 19 Fast Attach 14 | . . 14 Attach 24 | 7 1 16 Detach 5 | . . 5 Swap 39 | 4 11 24 Drop 44 | 3 13 28 Fire 152 | 23 40 89 Melee . | . . . Ram . | . . . Kick . | . . . Crush . | . . . Escape Stasis . | . . . Rewire . | . . . Trap . | . . . Miscellaneous . | . . . Route ------- -11/Scrapyard -10/Materials (discovered 3 exits: *Mat x3) -9/Materials (discovered 1 exit: *Mat) History --------- Turn | Location | Event 18 | -11/Scrapyard | Discovered new exit (range 15) 247 | -11/Scrapyard | Entered Materials 316 | -10/Materials | Build established: Mutant 444 | -10/Materials | Discovered new exit (range 17) 444 | -10/Materials | Discovered new exit (range 22) 686 | -10/Materials | Build established: Scavenger-Mutant 713 | -10/Materials | Discovered new exit (range 16) 722 | -10/Materials | Entered another Materials area 722 | -9/Materials | Evolved 2 slots: Propulsion x1, Utility x1 870 | -9/Materials | Discovered new exit (range 11) 877 | -9/Materials | Identified exit to Materials 1236 | -9/Materials | Core integrity fell below 50% 1273 | -9/Materials | Core integrity fell below 20% 1289 | -9/Materials | Lost 7 parts (2p2n2u1w) 1586 | -9/Materials | Destroyed by G-34 Mercenary with Small Laser Last Messages --------------- 01508_ Knocked back. 01511_ B-36 Bruiser destroyed. 01514_ Acquired Sml. Laser. 01518_ Dropped Imp. Assault Rifle. 01519_ Acquired 42 matter. 01520_ Acquired Ion Engine. 01523_ Dropped Imp. Assault Rifle. 01523_ Acquired Sml. Laser. 01526_ Dropped Ion Engine. 01533_ Acquired Flight Unit. 01539_ Connecting with Terminal... >>Alert(Check) Current Alert Level: 2-M 01539_ ALERT: Suspicious activity at Terminal M008. Dispatching Investigation squad. 01574_ Flight Unit destroyed. 01577_ Overheating: Energy bleed (-45). 01579_ G-34 Mercenary destroyed. 01579_ Switching to secondary target: G-34 Mercenary. Map ----- +----------------------------------------------------+ | ?????????????????????#!!!![[#?# # # """ #? | | ?????????????????????#!!! [[#?# # # """ #? | | ?????????????????????# ! #?#+###### # """ #? | | ?????????????????????#### ###?# # # # #? | | ????????????????????????# #???# # # # ! #? | | #####???????????????????# #???# # # ########? | | ?????##########???# ##### # # ##??????? | | %! ?????# """ """ #??# + # ???????? | | !! ????# """ """ #??# ##### # # #???????? | | ! ?#### """ """ #??# #???# # # #???????? | | # # #??# #???# # # #???????? | | """ # + #??# #???# ###### #???????? | | """ + # ####+##### ###### +???????? | | """ # # # # #???????? | | # # # # #???????? | | ######### ########### # ####+#### | | # # "T" #?# # | | # + #?# + | | # # #?# # | | [[ # #########?# ######## ######### | | [ # #########?# #??????# # | | # # ! #?# #??????# # """ | | # + #?##########??????# # "T" | | # # #?????????????????# # | | #####+### ####+###################### # """ """ | | **=#! [ @gg[ u # """ """ | | ! =#[[ x ###################### + """ """ | | %%!+% ##+#####+##????????????????????# # | | =!=#*=# [ #????????????????????# ######### | | =![#* # #????????????????????# # | | =#### #????????????????????# #""" | | ####??# #????????????????????# #""" | | ??????# """ [[ #????????????????????# #""" | | ??????# """=[[ #????????????????????# + | | ??????# """ [[ #????????????????????# #""" | | ??????# !! #????????????????????# #""" | | ??????# #########????????????????????# #""" | | ??????##?????????????????????????????##### | | ?????????????????????????????????????????######### | | ?????????????????????????????????????????????????? | | ?????????????????????????????????????????????????? | | ?????????????????????????????????????????????????? | | ?????????????????????????????????????????????????? | | ?????????????????????????????????????????????????? | | ?????????????????????????????????????????????????? | | | | | | | | | | | +----------------------------------------------------+ Best States ------------- Heat Dissipation 48 Energy Generation 10 Energy Capacity 250 Matter Stores 300 Matter Capacity 300 Sight Range 18 Robot Scan Range 14 Terrain Scan Density 10 Additional Mass Support 6 Armor Coverage 150 Evasion (%) 63 Recoil Reduction 2 Item Schematics ----------------- Imp. Ion Engine | -9/Materials | Scanalyzed Flight Unit | -9/Materials | Scanalyzed Grenade Launcher | -9/Materials | Scanalyzed Lgt. Ion Engine | -9/Materials | Scanalyzed Heat Sink | -9/Materials | Scanalyzed Robot Schematics ------------------ None Fabricated ------------ Nothing Alien Tech Used ----------------- None Achievements -------------- None Challenges ------------ None Game ------ Seed ShadingSignalAutohacker Manual? 0 Play Time 00:48:25 Cumulative 6.1 hours Start 2024.04.16 @ 22:35:24 End 2024.04.16 @ 23:24:01 Sessions 1 Manual Loads 0 Difficulty Rogue Special Mode None Game No. 4 Rogue 4 Adventurer 0 Explorer 0 Win Type - Total 0 Types 0/0/0/0/0/0/0/0/0 Lore% 2 Gallery% 7 Achievement% 8 Wizard Run 0 Options --------- Layout 1 ASCII 0 Keyboard 0 Movement Mouse Keybinds 0 Fullscreen 2 Font 32/SmallcapsGlow Map View 50x35 Zoom Use 0% Tactical HUD 1 Map Filters NONE Filters NONE Steam 1 RUN: 43811102-7ee3-4547-857e-39a1f7c23d5f